bitfinex/quotes_ETHUSD_20240823
["timestamp","ask_amount","ask_price","bid_price","bid_amount"]
[1724436763956,3.67073,2724.3,2723.3,3.67201]
[1724436763957,7.34151,2724.3,2723.3,3.67201]
[1724436764112,3.0,2724.2,2723.3,3.67201]
[1724436764311,6.32631194,2725.0,2722.9,9.7646]
[1724436764512,6.32631194,2725.0,2720.5,1.11430658]
[1724436764513,9.4618,2722.3,2721.2,3.67474]
[1724436764717,3.67317,2722.5,2721.5,3.67444]
[1724436764946,3.67317,2722.5,2721.4,3.67448]
[1724436764947,4.407775,2722.5,2721.4,3.67448]
[1724436765142,0.734605,2722.5,2721.4,3.67448]
[1724436765342,0.07342363,2722.4,2721.4,3.67448]
[1724436765879,3.0,2722.4,2721.4,3.67448]
[1724436766087,0.734605,2722.5,2721.6,3.67422]
[1724436767503,0.734605,2722.5,2721.6,12.93572]
[1724436767691,3.0,2722.6,2721.7,3.67414]
[1724436767893,3.0,2722.7,2721.6,12.93572]
[1724436768111,4.01799173,2722.6,2721.6,12.93572]
[1724436768271,3.89694732,2722.5,2721.6,12.93568]
[1724436768470,0.34498173,2722.4,2721.6,12.93568]
[1724436768699,0.07342363,2722.3,2721.6,9.2615]
[1724436768900,0.41840536,2722.3,2721.6,9.2615]
[1724436769072,0.34498173,2722.2,2721.6,9.2615]
[1724436769277,0.34498173,2722.2,2721.6,12.93577]
[1724436769472,0.3449935,2722.1,2721.6,12.93577]
[1724436769673,3.0,2722.5,2722.0,3.67365]
[1724436769999,3.07342363,2723.1,2721.0,0.51466018]
[1724436770204,3.67359,2722.2,2721.3,9.6761]
[1724436770425,0.89706786,2722.1,2721.3,13.35073]
[1724436770574,0.34502082,2722.1,2721.3,13.35073]
[1724436770772,0.34502082,2722.0,2721.3,11.378656]
[1724436771020,0.34502082,2722.0,2721.6,3.67427]
[1724436771335,3.07342363,2722.5,2721.6,3.67422]
[1724436771489,0.89699867,2722.4,2721.6,3.67422]
[1724436772231,0.89699867,2722.4,2721.8,3.67403]
[1724436772449,0.34499949,2722.3,2721.6,4.409094]
[1724436772604,3.673,2722.6,2721.6,3.67422]
[1724436772799,3.89692258,2722.5,2721.6,3.67422]
[1724436773003,3.0,2722.7,2721.8,3.67395]
[1724436773324,3.67098,2724.1,2721.3,15.053326]
[1724436773325,0.89694237,2722.6,2722.2,9.4477]
[1724436773499,0.07342363,2723.5,2722.2,13.12113]
[1724436773716,3.67237,2723.1,2722.2,10.759813]
[1724436773955,0.89671445,2723.0,2722.2,10.759813]
[1724436774147,4.64265808,2723.0,2722.2,10.759813]
[1724436774416,0.34489017,2722.9,2722.2,10.759813]
[1724436774640,0.34489017,2722.8,2722.2,14.433183]
[1724436774969,3.0,2723.2,2722.4,3.67322]
[1724436775170,0.89672279,2723.1,2722.4,3.67322]
[1724436775327,0.34489338,2723.0,2722.4,3.67322]
[1724436775517,0.34488698,2722.9,2722.4,3.67322]
[1724436775848,3.0,2723.4,2722.4,3.67312]
[1724436776049,0.89668359,2723.3,2722.4,5.49687783]
[1724436776251,3.74568363,2723.2,2722.2,13.12114]
[1724436776452,3.0,2723.1,2722.2,13.12114]
[1724436776656,0.3448929,2723.0,2722.2,9.4477]
[1724436776951,3.67156,2723.7,2722.6,3.67289]
[1724436777250,3.67156,2723.7,2722.4,3.67317]
[1724436777251,3.67188,2723.4,2722.4,3.67317]
[1724436777423,0.97003137,2723.3,2722.4,3.67317]
[1724436777612,4.64226137,2723.2,2722.2,13.12116]
[1724436777818,0.89660774,2723.1,2722.2,13.12116]
[1724436778014,3.89660774,2723.1,2722.2,13.12116]
[1724436778221,0.97003137,2723.0,2722.2,9.4477]
[1724436778416,4.56927774,2722.9,2721.8,13.61955]
[1724436778657,0.97003137,2722.8,2722.1,3.67363]
[1724436778852,0.34484913,2722.7,2722.1,3.67363]
[1724436779150,0.34484913,2722.6,2721.8,9.9456]
[1724436779354,0.34487382,2723.0,2722.6,3.67286]
[1724436779525,0.07342363,2723.6,2722.5,3.67298]
[1724436779526,3.67182,2723.5,2722.5,3.67298]
[1724436779727,3.34487272,2723.4,2722.5,3.67298]
[1724436779926,0.89666847,2723.3,2722.5,3.67298]
[1724436780259,0.89666847,2723.2,2722.5,3.67298]
[1724436780418,0.34487249,2723.1,2722.5,3.67298]
[1724436780617,0.34487249,2723.0,2722.5,3.67298]
[1724436780842,3.55179635,2723.4,2722.5,3.67298]
[1724436781030,0.89665023,2723.3,2722.5,3.67298]
[1724436781231,1.34149919,2723.2,2722.5,3.67298]
[1724436781432,0.97007741,2723.1,2722.3,3.67331]
[1724436781637,0.34488216,2723.0,2722.3,7.34659]
[1724436781833,0.44484466,2723.2,2722.5,3.67309]
[1724436782046,0.34487791,2723.1,2722.5,3.67309]
[1724436782558,0.34487791,2723.0,2722.5,0.734638]
[1724436782759,3.55179635,2723.4,2722.8,3.67261]
[1724436782760,0.55179635,2723.4,2722.8,3.67261]
[1724436782927,0.89660308,2723.3,2722.8,3.67261]
[1724436783994,0.89660308,2723.3,2722.9,3.6725]
[1724436784186,0.34484734,2723.3,2723.0,3.67241]
[1724436784330,0.55179635,2723.4,2722.8,3.67261]
[1724436784677,0.34482475,2723.3,2722.9,3.67254]
[1724436784895,0.55179635,2723.4,2722.9,3.67254]
[1724436785197,0.55179635,2723.4,2723.0,3.67241]
[1724436785323,0.55179635,2723.4,2723.3,7.34402]
[1724436785623,0.55179635,2723.4,2723.3,11.01603]
[1724436785824,0.55179635,2723.4,2723.3,13.594623]
[1724436786023,0.55179635,2723.4,2723.3,9.922613]
[1724436786265,0.55179635,2723.4,2723.3,5.700603]
[1724436786558,0.55179635,2723.4,2723.3,3.67201]
[1724436786917,0.55179635,2723.4,2723.2,3.67213]
[1724436787483,0.55179635,2723.4,2723.3,3.67201]
[1724436787943,6.82187312,2724.3,2723.3,3.67201]
[1724436788145,0.07342363,2724.2,2723.3,3.67201]
[1724436788344,1.10037713,2724.2,2723.3,3.67201]
[1724436788556,0.34476619,2724.1,2723.3,3.67201]
[1724436788757,0.07342363,2724.0,2723.4,3.67184]
[1724436789242,0.07342363,2724.0,2723.3,3.67201]
[1724436789685,12.72666949,2724.3,2723.1,9.2699]
[1724436789844,0.34473752,2724.2,2723.2,0.92699]
[1724436790046,12.72666949,2724.3,2723.2,0.92699]
[1724436790402,0.41815414,2724.2,2723.5,3.67172]
[1724436790585,0.34473051,2724.1,2723.6,3.6716]
[1724436790751,12.72666949,2724.3,2723.4,3.67187]
[1724436791090,0.418152,2724.2,2723.4,3.67187]
[1724436791283,0.07342363,2724.2,2723.4,3.67187]
[1724436791489,0.34474373,2724.1,2723.4,3.67187]
[1724436791646,0.07342363,2724.0,2723.4,3.67187]
[1724436791849,0.07342363,2724.2,2723.2,3.67213]
[1724436792054,5.79003513,2724.1,2723.0,3.67238]
[1724436792284,0.41817575,2724.0,2723.0,3.67238]
[1724436792445,0.34475212,2723.9,2723.0,3.67238]
[1724436792784,0.34475212,2723.9,2723.2,3.67213]
[1724436792983,0.34475212,2723.9,2723.0,3.67238]
[1724436792984,0.07342363,2723.8,2723.0,7.34469]
[1724436793348,0.07342363,2723.7,2722.8,3.67265]
[1724436793585,9.0099,2723.6,2722.8,3.67265]
[1724436793787,0.07342363,2723.5,2722.8,3.67265]
[1724436793943,0.30734236,2723.8,2723.0,3.67233]
[1724436793944,3.30734236,2723.8,2723.0,3.67233]
[1724436794153,3.30734236,2723.8,2723.2,3.67204]
[1724436794367,3.0,2723.9,2723.2,3.67205]
[1724436794688,3.0,2723.9,2723.4,3.67174]
[1724436795050,3.0,2723.9,2723.2,7.34415]
[1724436795248,0.34477014,2723.8,2723.2,3.67205]
[1724436795447,3.0,2723.9,2723.2,3.67205]
[1724436795749,0.34476898,2723.8,2723.4,3.67185]
[1724436795946,3.0,2723.9,2723.4,3.67185]
[1724436796216,0.07776949,2724.3,2723.0,12.91936]
[1724436796493,0.34472918,2724.2,2723.7,3.67145]
[1724436796692,0.07776949,2724.3,2724.2,3.6708]
[1724436796848,9.5223,2724.9,2724.1,3.67091]
[1724436797052,1.29689513,2724.8,2724.1,3.67091]
[1724436797354,0.34466513,2724.7,2724.2,3.67076]
[1724436797580,0.34466513,2724.7,2724.1,3.67091]
[1724436797581,0.95223,2724.8,2724.3,3.67065]
[1724436797782,0.34466156,2724.6,2724.3,3.67065]
[1724436797950,9.5223,2724.9,2724.1,3.67091]
[1724436798162,9.5223,2724.9,2724.1,3.67084]
[1724436798475,0.34466576,2724.8,2724.3,3.67061]
[1724436798651,0.34466576,2724.7,2724.3,3.67061]
[1724436798857,12.95005,2725.3,2724.3,3.67061]
[1724436799089,2.00657332,2725.2,2724.3,3.67061]
[1724436799293,0.34464632,2725.1,2724.4,3.67048]
[1724436799496,0.34464632,2725.0,2724.4,3.67048]
[1724436799793,1.661927,2725.2,2724.6,3.67025]
[1724436799967,1.661927,2725.2,2724.5,3.67039]
[1724436799968,0.34460404,2725.1,2724.7,3.67012]
[1724436800170,1.661927,2725.2,2724.7,3.67012]
[1724436800377,9.2807,2725.3,2724.5,3.67034]
[1724436800378,0.9256157,2725.1,2724.5,3.67034]
[1724436800891,0.07342363,2725.0,2724.3,3.67065]
[1724436801693,0.07342363,2725.0,2724.1,3.67083]
[1724436801992,0.34464086,2724.9,2723.9,3.67112]
[1724436802197,0.41806449,2724.8,2724.0,3.67099]
[1724436802538,0.41806449,2724.7,2724.1,3.6709]
[1724436802696,0.41806449,2724.7,2723.9,3.67112]
[1724436802697,0.41523008,2724.7,2723.9,3.67112]
[1724436802992,0.41523008,2724.7,2723.7,3.67135]
[1724436802993,9.52778241,2724.6,2723.7,3.67135]
[1724436803191,0.34468241,2724.5,2723.9,3.67111]
[1724436803395,3.0,2724.5,2723.9,3.67111]
[1724436803598,3.07342363,2724.5,2723.9,3.67111]
[1724436803771,4.25983301,2724.5,2723.9,3.67111]
[1724436803953,3.0,2724.5,2723.9,3.67111]
[1724436804355,3.0,2724.5,2723.6,3.67157]
[1724436804555,0.34180645,2724.7,2724.1,3.67083]
[1724436804771,3.0,2724.9,2724.1,3.67083]
[1724436804971,0.34465912,2724.8,2723.7,3.67139]
[1724436805194,3.0,2725.0,2724.3,3.6706]
[1724436805394,3.0,2725.0,2724.5,3.67031]
[1724436805601,3.07342363,2725.4,2724.3,3.67055]
[1724436805787,3.66961,2725.1,2724.1,3.67083]
[1724436805987,6.66926,2725.4,2724.3,3.67054]
[1724436806189,1.92754186,2725.3,2724.5,3.67037]
[1724436806396,0.34464586,2725.2,2724.6,3.67025]
[1724436806580,9.1597,2725.5,2724.7,3.67004]
[1724436806782,3.66869,2725.8,2724.9,3.66977]
[1724436807107,4.01339149,2725.7,2724.7,3.67003]
[1724436807421,0.76820815,2725.6,2724.7,3.67003]
[1724436807576,0.76820815,2725.6,2724.7,7.34007]
[1724436808086,3.76820815,2725.6,2724.7,7.34007]
[1724436808282,3.76820815,2725.6,2724.8,3.66995]
[1724436808479,0.76820815,2725.6,2724.8,3.66995]
[1724436808686,3.0,2725.5,2724.8,3.66995]
[1724436808906,0.76820815,2725.6,2724.8,3.66995]
[1724436809209,0.76820815,2725.6,2724.7,3.67003]
[1724436809371,0.74370582,2725.5,2724.7,3.67001]
[1724436809884,3.74370582,2725.5,2724.7,3.67001]
[1724436810094,3.0,2725.4,2724.8,3.6699]
[1724436810279,0.74370582,2725.5,2724.8,3.6699]
[1724436810696,0.07342363,2725.4,2724.4,3.67052]
[1724436811080,3.0,2725.5,2724.3,9.2942]
[1724436811282,3.07342363,2725.8,2724.9,3.66977]
[1724436811494,6.74209363,2725.8,2724.9,3.66977]
[1724436811696,0.07342363,2725.7,2724.9,3.66977]
[1724436812185,7.33906,2725.2,2724.2,3.67072]
[1724436812386,7.33906,2725.2,2723.2,13.60963]
[1724436812387,3.66984,2725.0,2723.2,13.60963]
[1724436812587,3.0,2724.9,2724.1,7.34168]
[1724436812895,6.74303363,2725.1,2724.1,3.67083]
[1724436813096,3.07342363,2725.1,2724.1,3.67083]
[1724436813315,3.0,2725.1,2724.5,3.67038]
[1724436813520,3.66921,2725.4,2724.5,3.67038]
[1724436813814,3.0,2725.3,2724.5,3.67038]
[1724436814176,3.0,2725.3,2724.6,3.67022]
[1724436814375,17.88516236,2725.6,2724.7,3.67012]
[1724436814623,3.0,2725.5,2724.6,3.67018]
[1724436814824,3.0,2725.5,2724.7,3.67009]
[1724436814974,4.72161724,2725.5,2724.7,3.67009]
[1724436815418,9.7667,2726.1,2724.7,9.1487]
[1724436815579,0.34455615,2726.0,2725.1,3.66951]
[1724436815787,3.66886,2725.7,2724.7,9.1487]
[1724436816090,3.66872,2725.8,2724.8,3.66988]
[1724436816290,0.733731,2725.8,2724.9,3.66984]
[1724436816599,3.66859,2725.9,2725.0,3.66967]
[1724436816789,3.66859,2725.9,2724.9,3.66975]
[1724436817095,9.7667,2726.1,2725.2,3.66937]
[1724436817304,0.34453225,2726.0,2725.2,3.66937]
[1724436817612,9.49963825,2726.0,2725.0,3.66965]
[1724436817818,3.66854,2725.9,2725.0,3.66965]
[1724436818016,0.07342363,2725.8,2725.0,3.66965]
[1724436818337,0.07342363,2725.8,2724.6,3.67017]
[1724436818338,3.66888,2725.7,2724.6,3.67017]
[1724436818629,3.0,2725.8,2724.8,3.6699]
[1724436818838,3.74200363,2725.9,2724.9,3.66975]
[1724436819111,3.74200363,2725.9,2725.0,3.66972]
[1724436819112,3.0,2725.8,2725.0,3.66972]
[1724436819319,4.14867709,2725.8,2725.0,3.66972]
[1724436819519,4.14867709,2725.8,2724.4,13.27698]
[1724436819520,3.6693,2725.4,2724.5,3.67032]
[1724436819831,3.74241363,2725.6,2724.6,7.3404]
[1724436819993,3.74241363,2725.6,2723.5,3.67165]
[1724436819994,3.66994,2724.9,2723.5,3.67169]
[1724436820325,6.2652036,2725.0,2724.0,3.67094]
[1724436820326,0.99351436,2724.8,2724.0,3.67094]
[1724436820479,3.0,2724.9,2724.1,3.67088]
[1724436821617,3.0,2724.9,2724.0,3.67094]
[1724436821618,6.74331363,2724.9,2724.0,3.67094]
[1724436822019,6.74331363,2724.9,2722.6,0.16224341]
[1724436822020,9.3307,2724.8,2722.6,0.16224341]
[1724436822221,9.3307,2724.8,2722.5,9.2453]
[1724436822222,6.2652036,2724.1,2723.1,3.67226]
[1724436822378,3.67177,2723.5,2722.5,9.2453]
[1724436822579,3.74519363,2723.5,2722.5,14.210126]
[1724436822904,3.0,2723.4,2722.5,14.210126]
[1724436823279,3.0,2723.4,2722.6,3.67295]
[1724436823485,3.0,2723.4,2722.5,10.537146]
[1724436823486,0.07342363,2723.3,2722.5,10.537146]
[1724436823892,0.07342363,2723.3,2722.5,14.210226]
[1724436824091,0.07342363,2723.3,2722.5,10.537146]
[1724436824295,6.6719,2723.4,2722.5,10.537146]
[1724436824496,6.6719,2723.4,2722.6,1.4210276]
[1724436824813,3.0,2723.4,2722.6,1.4210276]
[1724436825058,6.67189,2723.4,2722.6,1.4210276]
[1724436825544,3.0,2723.4,2722.6,1.4210276]
[1724436825917,6.67188,2723.4,2722.4,3.67313]
[1724436826126,3.0,2723.4,2722.5,3.67309]
[1724436826304,6.74526363,2723.5,2722.5,3.67309]
[1724436826505,3.67188,2723.4,2722.4,3.67313]
[1724436826717,3.0,2723.3,2722.4,3.67313]
[1724436826921,3.0,2723.3,2722.4,4.040443]
[1724436827866,3.0,2723.3,2722.7,3.67272]
[1724436828153,3.0,2723.7,2722.8,3.67259]
[1724436828358,3.0,2723.9,2723.0,3.6724]
[1724436828652,4.600184,2723.9,2722.8,3.67258]
[1724436828794,3.67143,2723.8,2722.8,3.67258]
[1724436828993,3.0,2723.7,2722.9,3.67254]
[1724436829500,3.0,2723.7,2723.0,3.67241]
[1724436829698,6.67121,2723.9,2723.0,5.395569]
[1724436829937,3.0,2723.9,2723.0,5.395569]
[1724436830235,16.72344,2724.4,2723.4,3.67174]
[1724436830409,2.68082937,2724.5,2722.1,9.7874]
[1724436830410,9.3822,2723.9,2722.1,9.7874]
[1724436830606,13.05352,2723.9,2722.4,3.67313]
[1724436830820,13.05352,2723.9,2722.9,3.67255]
[1724436831023,13.05352,2723.9,2722.8,3.67257]
[1724436831209,9.3822,2723.9,2723.0,3.6723]
[1724436831423,11.054631,2723.9,2723.0,3.6723]
[1724436831737,3.0,2723.8,2723.0,3.6723]
[1724436832223,0.07342363,2723.7,2722.8,7.34523]
[1724436832826,3.74493363,2723.7,2722.5,3.67297]
[1724436833006,3.0,2723.6,2722.7,3.67274]
[1724436833202,3.67216,2723.2,2722.2,0.97874]
[1724436833552,3.6725,2723.0,2721.9,3.67379]
[1724436833756,3.07342363,2722.9,2721.9,3.67379]
[1724436834041,3.07342363,2722.9,2721.9,7.34761]
[1724436834368,3.67332,2722.4,2721.4,3.67454]
[1724436834547,3.0,2722.3,2721.4,3.67444]
[1724436834868,9.583,2722.9,2722.0,3.67365]
[1724436835029,9.583,2722.9,2722.2,3.67347]
[1724436835030,3.0,2722.8,2722.2,3.67347]
[1724436835576,3.67205,2723.3,2722.3,0.07346037]
[1724436835846,13.25505,2723.3,2722.2,3.67341]
[1724436836010,3.6722,2723.2,2722.2,3.67339]
[1724436836209,3.6722,2723.2,2722.3,3.67335]
[1724436836412,1.32552,2723.2,2722.2,3.67339]
[1724436836811,1.39894363,2723.2,2722.2,3.67339]
[1724436837244,1.32552,2723.2,2722.2,3.67339]
[1724436837406,7.99768,2723.2,2722.2,3.67339]
[1724436837612,3.0,2723.2,2722.4,3.67312]
[1724436837813,3.0,2723.2,2722.0,0.367365]
[1724436837814,3.0,2723.2,2722.5,3.67297]
[1724436838047,3.0,2723.2,2722.6,3.67292]
[1724436838255,3.0,2723.2,2722.4,3.67312]
[1724436838977,3.0,2723.2,2722.5,3.67307]
[1724436839343,3.67232,2723.1,2722.1,3.6736]
[1724436839641,6.74586363,2723.0,2722.1,3.6736]
[1724436840042,3.07342363,2723.0,2722.1,3.6736]
[1724436840248,3.0,2723.0,2722.1,3.67354]
[1724436840450,0.07342363,2722.9,2722.1,3.67354]
[1724436840653,4.33172363,2723.2,2722.3,3.67335]
[1724436840842,10.38922363,2723.1,2721.3,0.00165372]
[1724436841037,9.7658,2722.3,2721.4,3.67449]
[1724436841469,3.07342363,2722.2,2721.4,3.67449]
[1724436841626,3.0,2722.2,2721.4,3.67449]
[1724436841827,3.0,2722.2,2721.3,0.00165372]
[1724436842028,3.0,2722.2,2721.4,3.67457]
[1724436842228,3.0,2722.2,2721.4,0.36762237]
[1724436842452,9.7658,2722.7,2721.9,3.67382]
[1724436842654,3.0,2722.6,2721.9,3.67382]
[1724436842932,3.0,2722.6,2722.0,3.67369]
[1724436843244,10.623,2723.2,2722.3,3.67328]
[1724436843587,10.623,2723.2,2722.1,3.6735]
[1724436843588,5.469028,2723.1,2722.1,3.6735]
[1724436844301,9.3647,2723.2,2721.9,9.8724]
[1724436844592,9.3647,2723.2,2722.6,3.67295]
[1724436844951,9.3647,2723.2,2722.6,3.67287]
[1724436845288,13.21152,2723.6,2722.6,3.67288]
[1724436845430,9.5399,2723.6,2722.7,3.67279]
[1724436845630,9.5399,2723.6,2722.6,3.67288]
[1724436845882,9.5399,2723.6,2722.8,3.67267]
[1724436846099,9.5399,2723.6,2722.6,4.040168]
[1724436846100,13.21151,2723.6,2722.6,4.040168]
[1724436846379,9.5399,2723.6,2722.8,3.67264]
[1724436846544,9.5399,2723.6,2722.8,3.67259]
[1724436846890,0.07342363,2723.5,2722.6,3.6729]
[1724436847033,3.67191,2723.4,2722.3,3.67335]
[1724436847233,0.07342363,2723.3,2722.4,3.67312]
[1724436847427,0.07342363,2723.3,2721.9,3.67388]
[1724436847713,3.44795699,2723.3,2722.5,3.67308]
[1724436847931,0.07342363,2723.2,2722.5,3.67308]
[1724436848290,3.07342363,2723.2,2722.5,3.67308]
[1724436848433,3.07342363,2723.2,2722.0,1.326318]
[1724436848434,3.67229,2723.1,2722.2,3.67343]
[1724436848630,9.1226,2722.9,2722.2,3.67343]
[1724436848871,3.0,2722.8,2722.2,3.67341]
[1724436849452,3.0,2722.8,2722.3,3.67334]
[1724436849672,3.0,2722.8,2722.4,3.67322]
[1724436849965,3.0,2722.8,2722.3,3.67327]
[1724436850171,3.0,2722.8,2722.5,3.673]
[1724436850365,3.0,2723.2,2722.5,3.673]
[1724436850568,3.07342363,2723.2,2722.5,3.673]
[1724436850979,3.07342363,2723.2,2722.3,3.67336]
[1724436851333,3.07342363,2723.2,2722.4,3.67321]
[1724436851540,3.07342363,2723.2,2722.3,3.67336]
[1724436851541,4.66021799,2723.2,2722.3,3.67336]
[1724436851788,8.33239799,2723.2,2722.3,3.67336]
[1724436852249,4.66021799,2723.2,2722.3,3.67328]
[1724436852451,3.0,2723.2,2721.8,9.5893]
[1724436852652,3.0,2723.2,2722.7,3.67278]
[1724436853380,3.0,2723.2,2722.5,7.34599]
[1724436853683,3.0,2723.2,2722.7,3.67282]
[1724436853851,3.67161,2723.6,2722.7,3.67271]
[1724436853852,3.0,2723.5,2722.7,3.67271]
[1724436854051,1.58675936,2723.5,2722.7,3.67271]
[1724436854251,3.0,2723.6,2722.9,3.67254]
[1724436854483,3.0,2723.6,2722.9,3.67246]
[1724436857263,9.8428,2724.1,2722.9,0.734495]
[1724436857472,3.15524793,2725.0,2723.7,3.67137]
[1724436857473,9.8428,2724.5,2723.7,3.67137]
[1724436857695,9.8428,2724.5,2723.4,3.6718]
[1724436857886,9.8428,2724.5,2723.6,3.67153]
[1724436858043,11.194115,2724.5,2723.6,3.67153]
[1724436858364,0.07342363,2724.4,2723.4,3.6718]
[1724436858559,0.07342363,2724.4,2723.4,3.67178]
[1724436858794,6.74396363,2724.4,2723.4,3.67178]
[1724436858966,3.74396363,2724.4,2723.4,3.67178]
[1724436859175,1.49380786,2724.3,2723.4,3.67178]
[1724436859591,7.76888753,2724.3,2723.4,3.67178]
[1724436859798,7.76888753,2724.3,2723.5,3.67172]
[1724436860313,7.76888753,2724.3,2723.6,3.67156]
[1724436860636,3.0,2724.2,2723.8,3.67133]
[1724436862083,3.0,2724.2,2723.6,7.34305]
[1724436862287,3.0,2724.2,2723.6,3.67149]
[1724436862501,3.0,2724.2,2723.8,3.67131]
[1724436863383,3.0,2724.2,2723.2,3.67207]
[1724436863591,3.0,2724.2,2724.0,3.67098]
[1724436863780,3.0,2724.2,2724.1,3.67093]
[1724436863985,3.0,2724.4,2724.2,3.6707]
[1724436865366,3.0,2724.4,2724.0,3.671]
[1724436865569,3.0,2724.4,2724.0,3.67095]
[1724436865962,3.0,2724.4,2723.8,3.67127]
[1724436865963,4.91178797,2724.4,2723.8,3.67127]
[1724436866273,4.91178797,2724.4,2724.0,3.67098]
[1724436866274,3.0,2724.4,2724.0,3.67098]
[1724436866470,6.27507967,2724.1,2723.4,3.67174]
[1724436866670,0.07342363,2724.0,2723.4,3.67174]
[1724436867123,6.27507967,2724.1,2723.6,3.67161]
[1724436867323,3.0,2724.4,2723.9,3.67112]
[1724436867473,3.0,2724.4,2723.9,3.67111]
[1724436867828,3.0,2724.4,2723.4,3.67187]
[1724436867965,3.0,2724.8,2724.2,3.67072]
[1724436868676,18.72439249,2725.3,2724.0,9.5014]
[1724436868898,18.72439249,2725.3,2723.6,3.67156]
[1724436868899,3.74297363,2725.2,2724.2,3.67071]
[1724436869218,3.74297363,2725.2,2724.3,3.67062]
[1724436869568,3.74297363,2725.2,2723.8,3.67131]
[1724436869569,9.7661,2724.7,2723.9,3.67113]
[1724436869821,2.0445476,2724.6,2723.9,3.67113]
[1724436870033,6.27507967,2724.4,2723.7,3.67139]
[1724436870325,6.27507967,2724.0,2723.3,3.67194]
[1724436870521,6.27507967,2724.0,2722.9,0.734495]
[1724436870685,3.0,2723.9,2723.4,3.67175]
[1724436870885,3.0,2723.9,2723.0,1.0235895]
[1724436870886,3.07342363,2723.9,2723.2,3.67208]
[1724436871101,3.0,2723.9,2723.0,1.0235895]
[1724436871271,3.0,2723.9,2723.3,3.6719]
[1724436871473,3.0,2723.9,2723.0,1.0235895]
[1724436871474,3.0,2723.9,2723.0,4.6959395]
[1724436871775,3.0,2723.9,2723.1,0.83683795]
[1724436872036,9.7661,2724.2,2723.6,3.6715]
[1724436872314,3.0,2724.1,2723.7,3.67137]
[1724436872521,3.0,2724.1,2723.6,3.6715]
[1724436873214,3.0,2724.1,2723.8,3.67132]
[1724436873519,3.0,2724.1,2723.6,3.6715]
[1724436873811,3.0,2724.3,2723.6,3.6715]
[1724436874031,3.62750797,2724.3,2723.6,3.6715]
[1724436874667,3.0,2724.3,2723.6,3.6715]
[1724436874867,3.0,2724.3,2723.8,3.67121]
[1724436875207,9.1875,2724.6,2723.1,0.83683795]
[1724436875208,9.1875,2724.6,2724.1,3.67084]
[1724436875385,9.1875,2724.6,2724.2,3.67074]
[1724436875721,6.27507967,2724.8,2724.2,3.67072]
[1724436876008,6.27507967,2724.8,2724.3,3.67058]
[1724436876222,6.27507967,2724.4,2723.1,10.41673795]
[1724436876420,6.27507967,2724.4,2723.7,3.67142]
[1724436876569,9.0113,2724.3,2723.8,3.67125]
[1724436876769,9.0113,2724.3,2723.2,3.67206]
[1724436876770,6.27507967,2724.0,2723.2,3.67211]
[1724436876996,0.07342363,2723.9,2722.8,3.67261]
[1724436877209,3.74466363,2723.9,2723.0,3.6724]
[1724436877412,6.27507967,2723.6,2723.0,7.34473]
[1724436877571,6.27507967,2723.6,2723.0,3.67233]
[1724436877814,6.27507967,2723.6,2722.0,9.5799]
[1724436877815,6.27507967,2723.2,2722.0,9.5799]
[1724436878008,6.27507967,2723.2,2722.5,3.67309]
[1724436878009,0.07342363,2723.1,2722.5,3.67309]
[1724436878259,3.0,2723.5,2723.1,3.67227]
[1724436878574,9.7798,2723.8,2723.1,3.67227]
[1724436878575,9.7798,2723.8,2723.3,3.67197]
[1724436878708,3.34479237,2723.7,2723.3,3.67197]
[1724436878904,3.0,2723.7,2723.3,3.67197]
[1724436879358,11.17083797,2724.2,2723.3,3.67197]
[1724436879507,3.34475424,2724.1,2723.5,3.67166]
[1724436879708,0.34475424,2724.0,2723.3,3.67191]
[1724436879950,0.34475424,2724.0,2722.7,3.67278]
[1724436879951,6.69325754,2723.9,2723.1,3.67226]
[1724436880177,6.27507967,2723.5,2721.7,9.5233]
[1724436880332,6.27507967,2723.5,2722.6,3.67283]
[1724436880333,0.34475424,2723.4,2722.6,3.67283]
[1724436880649,4.97095763,2723.4,2722.6,7.34577]
[1724436880846,0.34475424,2723.3,2722.6,3.67285]
[1724436881210,0.07342363,2723.2,2722.4,3.67312]
[1724436881564,0.34488337,2723.1,2722.4,3.67311]
[1724436881764,4.69962702,2723.4,2722.4,3.67311]
[1724436881935,0.3448707,2723.3,2722.6,3.67293]
[1724436882139,0.3448707,2723.2,2722.6,3.67293]
[1724436882350,4.62620339,2723.4,2722.5,3.67307]
[1724436882351,0.3448707,2723.1,2722.5,3.67307]
[1724436882665,4.62620339,2723.4,2722.5,3.67307]
[1724436882867,0.34486784,2723.3,2722.5,3.67307]
[1724436883052,0.34486784,2723.2,2722.6,3.67291]
[1724436883253,0.34486784,2723.1,2722.6,3.67291]
[1724436883452,3.0,2723.4,2722.8,3.67267]
[1724436883655,0.34484561,2723.3,2722.7,3.67279]
[1724436883850,0.34484561,2723.2,2722.6,3.67286]
[1724436884052,0.34484561,2723.1,2722.6,3.67286]
[1724436884264,3.0,2723.4,2722.8,3.67267]
[1724436884565,3.0,2723.4,2723.0,3.67238]
[1724436884781,3.0,2723.5,2723.0,3.67238]
[1724436885129,3.0,2723.5,2722.8,3.67262]
[1724436885130,0.34482748,2723.4,2722.9,3.67254]
[1724436885329,3.0,2723.5,2722.9,3.67254]
[1724436885532,0.34483487,2723.4,2722.8,3.67258]
[1724436885888,0.34483487,2723.4,2722.2,3.67346]
[1724436885889,6.27507967,2723.1,2722.2,3.67346]
[1724436886030,3.0,2723.0,2722.4,3.67313]
[1724436886645,3.0,2723.0,2721.2,9.54987925]
[1724436886646,9.2009,2722.9,2721.2,9.54987925]
[1724436886846,9.2009,2722.2,2721.3,3.6747]
[1724436887049,9.2009,2722.2,2721.2,9.0702]